fUSD/lending_fUSD_20260408
["ID","MTS","AMOUNT","RATE_DAILY","PERIOD"]
[420042514,1775631026348,-1000.0,9.91e-05,2]
[420042515,1775631026464,-1000.0,9.91e-05,2]
[420042516,1775631026597,1838.18,9.228e-05,2]
[420042517,1775631026789,-1000.0,9.91e-05,2]
[420042518,1775631026884,-301.1,9.91e-05,2]
[420042519,1775631026907,-698.9,9.91e-05,2]
[420042520,1775631026958,-1000.0,9.91e-05,2]
[420042521,1775631027012,-1000.0,9.91e-05,2]
[420042522,1775631028715,-1000.0,9.91e-05,2]
[420042523,1775631028760,-1000.0,9.91e-05,2]
[420042524,1775631028804,-301.1,9.91e-05,2]
[420042525,1775631028830,-479.62010106,0.0001,2]
[420042527,1775631031957,-193.0,0.00010003,2]
[420042529,1775631031966,-430.019,0.00010027,2]
[420042530,1775631031976,-80.70802952,0.00010058,2]
[420042532,1775631031988,-69.29197048,0.00010058,2]
[420042534,1775631031997,-300.0,0.00010058,2]
[420042536,1775631032007,-67.24496114,0.00010059,2]
[420042538,1775631032018,-240.41846823,0.00010059,2]
[420042539,1775631032028,-500.0,0.00010059,2]
[420042540,1775631032037,-500.0,0.00010059,2]
[420042541,1775631032047,-238.67680447,0.00010059,2]
[420042542,1775631032057,-500.0,0.00010059,2]
[420042543,1775631032066,-500.0,0.00010059,2]
[420042544,1775631032076,-500.0,0.00010059,2]
[420042545,1775631032086,-500.0,0.00010059,2]
[420042546,1775631032097,-500.0,0.00010059,2]
[420042547,1775631032106,-500.0,0.00010059,2]
[420042548,1775631032116,-500.0,0.00010059,2]
[420042549,1775631032125,-500.0,0.00010059,2]
[420042550,1775631032135,-500.0,0.00010059,2]
[420042551,1775631032145,-389.22681289,0.00010059,2]
[420042552,1775631032157,-110.77318711,0.00010059,2]
[420042553,1775631032166,-199.966295,0.00010059,2]
[420042554,1775631032323,-300.033705,0.00010059,2]
[420042555,1775631032332,-500.0,0.00010059,2]
[420042556,1775631032341,-500.0,0.00010059,2]
[420042557,1775631032351,-500.0,0.00010059,2]
[420042558,1775631032360,-500.0,0.00010059,2]
[420042559,1775631032370,-500.0,0.00010059,2]
[420042560,1775631032379,-500.0,0.00010059,2]
[420042561,1775631032389,-409.96629502,0.00010059,2]
[420042562,1775631032401,-90.03370498,0.00010059,2]
[420042563,1775631032410,-500.0,0.00010059,2]
[420042564,1775631032420,-500.0,0.00010059,2]
[420042565,1775631032430,-475.60109646,0.00010059,2]
[420042566,1775631032442,-24.39890354,0.00010059,2]
[420042567,1775631032452,-500.0,0.00010059,2]
[420042568,1775631032462,-291.71939173,0.00010059,2]
[420042569,1775631032474,-208.28060827,0.00010059,2]
[420042570,1775631032483,-50.5910046,0.00010059,2]
[420042571,1775631032495,-449.4089954,0.00010059,2]
[420042572,1775631032505,-500.0,0.00010059,2]
[420042573,1775631032516,-500.0,0.00010059,2]
[420042575,1775631032526,-500.0,0.00010059,2]
[420042577,1775631032537,-500.0,0.00010059,2]
[420042579,1775631032547,-500.0,0.00010059,2]
[420042581,1775631032557,-500.0,0.00010059,2]
[420042583,1775631032567,-500.0,0.00010059,2]
[420042585,1775631032578,-500.0,0.00010059,2]
[420042587,1775631032588,-500.0,0.00010059,2]
[420042590,1775631032598,-615.06930889,0.00010059,2]
[420042591,1775631032608,-500.0,0.00010059,2]
[420042593,1775631032618,-500.0,0.00010059,2]
[420042596,1775631032629,-500.0,0.00010059,2]
[420042597,1775631032639,-500.0,0.00010059,2]
[420042598,1775631032648,-500.0,0.00010059,2]
[420042599,1775631032658,-500.0,0.00010059,2]
[420042600,1775631032668,-500.0,0.00010059,2]
[420042601,1775631032677,-500.0,0.00010059,2]
[420042602,1775631032688,-500.0,0.00010059,2]
[420042603,1775631032698,-500.0,0.00010059,2]
[420042604,1775631032708,-500.0,0.00010059,2]
[420042605,1775631032718,-500.0,0.00010059,2]
[420042606,1775631032729,-500.0,0.00010059,2]
[420042607,1775631032738,-250.0,0.00010059,2]
[420042608,1775631032748,-500.0,0.00010059,2]
[420042609,1775631032757,-500.0,0.00010059,2]
[420042610,1775631032767,-500.0,0.00010059,2]
[420042611,1775631032775,-500.0,0.00010059,2]
[420042612,1775631032784,-500.0,0.00010059,2]
[420042613,1775631032794,-500.0,0.00010059,2]
[420042614,1775631032804,-500.0,0.00010059,2]
[420042615,1775631032814,-500.0,0.00010059,2]
[420042616,1775631032823,-500.0,0.00010059,2]
[420042617,1775631032833,-500.0,0.00010059,2]
[420042618,1775631032844,-500.0,0.00010059,2]
[420042619,1775631032854,-307.59217209,0.00010059,2]
[420042620,1775631032864,-500.11526413,0.00010059,2]
[420042621,1775631032874,-500.0,0.00010059,2]
[420042622,1775631032885,-500.0,0.00010059,2]
[420042623,1775631032896,-500.0,0.00010059,2]
[420042624,1775631032906,-500.0,0.00010059,2]
[420042625,1775631032915,-500.0,0.00010059,2]
[420042626,1775631032925,-500.0,0.00010059,2]
[420042627,1775631032936,-500.0,0.00010059,2]
[420042628,1775631032945,-500.0,0.00010059,2]
[420042629,1775631032955,-500.0,0.00010059,2]
[420042630,1775631032965,-500.0,0.00010059,2]
[420042631,1775631032975,-545.67014779,0.00010059,2]
[420042632,1775631032985,-500.0,0.00010059,2]
[420042633,1775631032995,-500.0,0.00010059,2]
[420042634,1775631033006,-500.0,0.00010059,2]
[420042635,1775631033015,-500.0,0.00010059,2]
[420042636,1775631033025,-500.0,0.00010059,2]
[420042637,1775631033037,-500.0,0.00010059,2]
[420042638,1775631033046,-454.62630542,0.00010059,2]
[420042639,1775631033056,-500.0,0.00010059,2]
[420042640,1775631033066,-500.0,0.00010059,2]
[420042641,1775631033076,-636.41753694,0.00010059,2]
[420042642,1775631033087,-479.62010106,0.00010059,2]
[420042643,1775631033097,-479.62010106,0.00010059,2]
[420042644,1775631033107,-500.0,0.00010059,2]
[420042645,1775631033118,-195565.34925143,0.0001006,2]
[420042646,1775631033129,-500.0,0.00010073,2]
[420042647,1775631033139,-500.0,0.00010073,2]
[420042648,1775631033149,-500.22085293,0.00010073,2]
[420042649,1775631033159,-500.0,0.00010073,2]
[420042650,1775631033169,-500.0,0.00010073,2]
[420042651,1775631033179,-500.0,0.00010073,2]
[420042652,1775631033189,-500.0,0.00010073,2]
[420042653,1775631033199,-500.0,0.00010073,2]
[420042654,1775631033208,-169.66281329,0.00010073,2]
[420042655,1775631033218,-500.0,0.00010073,2]
[420042656,1775631033228,-500.0,0.00010073,2]
[420042657,1775631033238,-200.08326476,0.00010073,2]
[420042658,1775631033248,-164.45663059,0.00010073,2]
[420042659,1775631033257,-281.88719221,0.00010073,2]
[420042660,1775631033266,-500.0,0.00010073,2]
[420042661,1775631033277,-500.0,0.00010073,2]
[420042662,1775631033286,-170.15582469,0.00010073,2]
[420042663,1775631033297,-150.0,0.00010097,2]
[420042664,1775631033306,-464.89674742,0.00010103,2]
[420042665,1775631033316,-920850.53853476,0.00010113,2]
[420042666,1775631033330,-83909.02129638,0.00010113,2]
[420042667,1775631033341,-40877.03248698,0.00010113,2]
[420042668,1775631033353,-126628.00114388,0.00010113,2]
[420042669,1775631033365,-1254.41808677,0.00010113,2]
[420042670,1775631033377,-14614.31016729,0.00010113,2]
[420042671,1775631033389,-38605.72879831,0.00010113,2]
[420042672,1775631033402,-9635.01886839,0.00010113,2]
[420042673,1775631033413,-4302.44331392,0.00010113,2]
[420042674,1775631033425,-784.80151804,0.00010113,2]
[420042675,1775631033437,-400.0,0.00010113,2]
[420042676,1775631033448,-533.12361376,0.00010113,2]
[420042677,1775631033460,-875.2214,0.00010113,2]
[420042679,1775631038227,-3116.98578466,0.00010059,2]
[420042680,1775631038237,-3116.98578466,0.00010059,2]
[420042681,1775631038247,-1256730.34077152,0.00010113,2]
[420042682,1775631038258,-2500.0,0.00010173,2]
[420042683,1775631038267,-4012.9504,0.00010173,2]
[420042684,1775631038277,-162.92608326,0.00010173,2]
[420042685,1775631038287,-1869.0092817,0.00010173,2]
[420042686,1775631038296,-715.44099296,0.00010197,2]
[420042687,1775631038306,-9126.7707,0.00010198,2]
[420042688,1775631038316,-405.523,0.000102,2]
[420042689,1775631038325,-5662.106,0.000102,2]
[420042690,1775631038335,-778.5330606,0.000102,2]
[420042691,1775631038344,-1084.35002386,0.00010272,3]
[420042692,1775631038354,-501.16240007,0.00010273,2]
[420042693,1775631038364,-576.75688538,0.00010273,2]
[420042694,1775631038374,-500.0,0.00010273,2]
[420042695,1775631038384,-150.99,0.00010273,2]
[420042696,1775631038394,-9999.99,0.00010273,2]
[420042697,1775631038404,-299.99,0.00010273,2]
[420042698,1775631038413,-9999.99,0.00010273,2]
[420042699,1775631038424,-9999.99,0.00010273,2]
[420042700,1775631038433,-2176.34,0.00010273,2]
[420042701,1775631038443,-518.32,0.00010273,2]
[420042702,1775631038452,-14114.9,0.00010273,2]
[420042703,1775631038462,-104733.16,0.00010273,2]
[420042704,1775631038473,-4999.99,0.00010273,2]
[420042705,1775631038482,-1191.35,0.00010273,2]
[420042706,1775631038490,-150.99,0.00010273,2]
[420042707,1775631038500,-999.99,0.00010273,2]
[420042708,1775631038510,-1621.24,0.00010273,2]
[420042709,1775631038520,-7176.46,0.00010273,2]
[420042710,1775631038530,-5947.35,0.00010273,2]
[420042711,1775631038540,-32744.36,0.00010273,2]
[420042712,1775631038549,-7611.53,0.00010273,2]
[420042713,1775631038559,-9999.99,0.00010273,2]
[420042714,1775631038569,-5507.95,0.00010273,2]
[420042715,1775631038579,-727.93,0.00010273,2]
[420042716,1775631038589,-9999.99,0.00010273,2]
[420042717,1775631038599,-219963.48,0.00010273,2]
[420042718,1775631038609,-499.99,0.00010273,2]
[420042719,1775631038619,-1138.4,0.00010273,2]
[420042720,1775631038629,-500.0,0.00010273,2]
[420042721,1775631038639,-500.0,0.00010273,2]
[420042722,1775631038649,-922.86,0.00010273,2]
[420042723,1775631038658,-958.28926477,0.00010279,2]
[420042724,1775631038668,-309128.01168243,0.0001028,2]
[420042725,1775631038678,-464.89674742,0.00010287,2]
[420042726,1775631038687,-151.0,0.00010292,2]
[420042727,1775631038698,-151.0,0.00010292,2]
[420042728,1775631038707,-151.0,0.00010292,2]
[420042729,1775631038718,-151.0,0.00010292,2]
[420042730,1775631038727,-151.0,0.00010292,2]
[420042731,1775631038736,-151.0,0.00010292,2]
[420042732,1775631038746,-151.0,0.00010292,2]
[420042733,1775631038756,-500.0,0.00010292,2]
[420042734,1775631038766,-151.0,0.00010292,2]
[420042735,1775631038776,-500.0,0.00010292,2]
[420042736,1775631038786,-151.0,0.00010292,2]
[420042737,1775631038796,-500.0,0.00010292,2]
[420042738,1775631038805,-500.0,0.00010292,2]
[420042739,1775631038815,-151.0,0.00010292,2]
[420042740,1775631038825,-500.0,0.00010292,2]
[420042741,1775631038835,-151.0,0.00010292,2]
[420042742,1775631038844,-500.0,0.00010292,2]
[420042743,1775631038853,-151.0,0.00010292,2]
[420042744,1775631038863,-500.0,0.00010292,2]
[420042745,1775631038872,-151.0,0.00010292,2]
[420042746,1775631038882,-200.0,0.00010292,2]
[420042747,1775631038892,-500.0,0.00010292,2]
[420042748,1775631038901,-151.0,0.00010292,2]
[420042749,1775631038910,-500.0,0.00010292,2]
[420042750,1775631038919,-151.0,0.00010292,2]
[420042751,1775631038928,-500.0,0.00010292,2]
[420042752,1775631038938,-500.0,0.00010292,2]
[420042753,1775631038947,-500.0,0.00010292,2]
[420042754,1775631038957,-500.0,0.00010292,2]
[420042755,1775631038967,-500.0,0.00010292,2]
[420042756,1775631038977,-241.09834606,0.00010292,2]
[420042757,1775631038987,-500.0,0.00010292,2]
[420042758,1775631038997,-500.0,0.00010292,2]
[420042759,1775631039007,-500.0,0.00010292,2]
[420042760,1775631039016,-500.0,0.00010292,2]
[420042761,1775631039026,-500.0,0.00010292,2]
[420042762,1775631039036,-456.90165394,0.00010292,2]
[420042763,1775631039046,-152.45672918,0.00010292,2]
[420042764,1775631039055,-1199.20597015,0.00010292,2]
[420042765,1775631039065,-155.45941456,0.00010292,2]
[420042766,1775631039075,-152.55219078,0.00010292,2]
[420042767,1775631039085,-200.0,0.00010295,2]
[420042768,1775631039095,-150.0,0.00010295,2]
[420042769,1775631039105,-150.0,0.00010295,2]
[420042770,1775631039115,-151.0,0.00010295,2]
[420042771,1775631039124,-150.0,0.00010295,2]
[420042772,1775631039135,-1096.24048485,0.00010296,3]
[420042773,1775631039144,-1500000.0,0.00010297,2]
[420042774,1775631039154,-151.0,0.00010297,2]
[420042775,1775631039165,-33041.7805,0.000103,2]
[420042776,1775631039176,-534.4933,0.000103,2]
[420042777,1775631039187,-1000.0,0.000103,2]
[420042778,1775631039198,-500.0,0.00010333,2]
[420042779,1775631039208,-200.0,0.00010398,2]
[420042780,1775631039217,-500.0,0.00010424,2]
[420042781,1775631039227,-500.0,0.00010424,2]
[420042782,1775631039236,-500.0,0.00010424,2]
[420042783,1775631039246,-500.0,0.00010424,2]
[420042784,1775631039256,-150.0,0.00010424,2]
[420042785,1775631039266,-500.0,0.00010424,2]
[420042786,1775631039276,-150.0,0.00010424,2]
[420042787,1775631039286,-500.0,0.00010424,2]
[420042788,1775631039296,-150.0,0.00010424,2]
[420042789,1775631039305,-500.0,0.00010424,2]
[420042790,1775631039315,-182.15202066,0.00010424,2]
[420042791,1775631039325,-595.10163207,0.00010424,2]
[420042792,1775631039335,-150.0,0.00010424,2]
[420042793,1775631039345,-151.55394064,0.00010424,2]
[420042794,1775631039355,-208.37237059,0.00010424,2]
[420042795,1775631039363,-500.0,0.00010424,2]
[420042796,1775631039372,-500.0,0.00010424,2]
[420042797,1775631039382,-500.0,0.00010424,2]
[420042798,1775631039392,-500.0,0.00010424,2]
[420042799,1775631039401,-500.0,0.00010424,2]
[420042800,1775631039410,-500.0,0.00010424,2]
[420042801,1775631039420,-500.0,0.00010424,2]
[420042802,1775631039429,-500.0,0.00010424,2]
[420042803,1775631039439,-500.0,0.00010424,2]
[420042804,1775631039449,-165.86332065,0.00010424,2]
[420042805,1775631039459,-500.0,0.00010424,2]
[420042806,1775631039468,-500.0,0.00010424,2]
[420042807,1775631039478,-500.0,0.00010424,2]
[420042808,1775631039487,-341.376807,0.00010424,2]
[420042809,1775631039496,-500.0,0.00010424,2]
[420042810,1775631039506,-500.0,0.00010424,2]
[420042811,1775631039515,-500.0,0.00010424,2]
[420042812,1775631039525,-399.40597196,0.00010424,2]
[420042813,1775631039535,-500.0,0.00010424,2]
[420042814,1775631039545,-500.0,0.00010424,2]
[420042815,1775631039555,-500.0,0.00010424,2]
[420042816,1775631039564,-500.0,0.00010424,2]
[420042817,1775631039575,-620.03833532,0.00010424,2]
[420042818,1775631039584,-500.0,0.00010424,2]
[420042819,1775631039594,-500.0,0.00010424,2]
[420042820,1775631039604,-339.81765262,0.00010424,2]
[420042821,1775631039614,-500.0,0.00010424,2]
[420042822,1775631039625,-160.5097946,0.00010424,2]
[420042823,1775631039636,-388.39476597,0.00010424,2]
[420042824,1775631039646,-150.36042852,0.00010424,2]
[420042825,1775631039656,-151.26762084,0.00010424,2]
[420042826,1775631039665,-150.88467267,0.00010424,2]
[420042827,1775631039675,-150.0,0.00010424,2]
[420042828,1775631039685,-150.0,0.00010424,2]
[420042829,1775631039694,-150.0,0.00010424,2]
[420042830,1775631039703,-500.0,0.00010424,2]
[420042831,1775631039713,-500.0,0.00010424,2]
[420042832,1775631039723,-150.0,0.00010424,2]
[420042833,1775631039733,-500.0,0.00010424,2]
[420042834,1775631039743,-150.0,0.00010424,2]
[420042835,1775631039752,-150.0,0.00010424,2]
[420042836,1775631039762,-500.0,0.00010424,2]
[420042837,1775631039773,-153.37566176,0.00010424,2]
[420042838,1775631039783,-500.0,0.00010424,2]
[420042839,1775631039793,-150.0,0.00010424,2]
[420042840,1775631039803,-500.0,0.00010424,2]
[420042841,1775631039814,-500.0,0.00010424,2]
[420042842,1775631039824,-420.12756453,0.00010424,2]
[420042843,1775631039834,-200.0,0.00010424,2]
[420042844,1775631039844,-200.0,0.00010424,2]
[420042845,1775631039854,-272.94970253,0.00010424,2]
[420042846,1775631039863,-150.0,0.00010424,2]
[420042847,1775631039873,-150.0,0.00010424,2]
[420042848,1775631039883,-500.0,0.00010424,2]
[420042849,1775631039893,-500.0,0.00010424,2]
[420042850,1775631039904,-500.0,0.00010424,2]
[420042851,1775631039914,-500.0,0.00010424,2]
[420042852,1775631039924,-500.0,0.00010424,2]
[420042853,1775631039934,-294.91635494,0.00010424,2]
[420042854,1775631039944,-150.0,0.00010424,2]
[420042855,1775631039953,-150.0,0.00010424,2]
[420042856,1775631039964,-150.0,0.00010424,2]
[420042857,1775631039973,-150.0,0.00010424,2]
[420042858,1775631039983,-286.3666211,0.00010424,2]
[420042859,1775631039993,-729.0,0.00010424,2]
[420042860,1775631040002,-729.0,0.00010424,2]
[420042861,1775631040011,-729.0,0.00010424,2]
[420042862,1775631040021,-729.0,0.00010424,2]
[420042863,1775631040032,-729.0,0.00010424,2]
[420042864,1775631040041,-729.0,0.00010424,2]
[420042865,1775631040051,-729.0,0.00010424,2]
[420042866,1775631040060,-729.0,0.00010424,2]
[420042867,1775631040070,-729.0,0.00010424,2]
[420042868,1775631040079,-729.0,0.00010424,2]
[420042869,1775631040089,-729.0,0.00010424,2]
[420042870,1775631040099,-729.0,0.00010424,2]
[420042871,1775631040109,-729.0,0.00010424,2]
[420042872,1775631040119,-729.0,0.00010424,2]
[420042873,1775631040129,-729.0,0.00010424,2]
[420042874,1775631040138,-729.0,0.00010424,2]
[420042875,1775631040147,-729.0,0.00010424,2]
[420042876,1775631040156,-729.0,0.00010424,2]
[420042877,1775631040165,-729.0,0.00010424,2]
[420042878,1775631040175,-500.0,0.00010424,2]
[420042879,1775631040184,-729.0,0.00010424,2]
[420042880,1775631040194,-520.29151548,0.00010424,2]
[420042881,1775631040203,-500.0,0.00010424,2]
[420042882,1775631040213,-500.0,0.00010424,2]
[420042883,1775631040222,-500.0,0.00010424,2]
[420042884,1775631040232,-500.0,0.00010424,2]
[420042885,1775631040241,-152.12238144,0.00010424,2]
[420042886,1775631040250,-500.0,0.00010424,2]
[420042887,1775631040260,-500.0,0.00010424,2]
[420042888,1775631040270,-729.0,0.00010424,2]
[420042889,1775631040279,-500.0,0.00010424,2]
[420042893,1775631040497,-500.0,0.00010424,2]
[420042894,1775631040508,-500.0,0.00010424,2]
[420042895,1775631040518,-500.0,0.00010424,2]
[420042896,1775631040528,-500.0,0.00010424,2]
[420042897,1775631040538,-500.0,0.00010424,2]
[420042898,1775631040547,-500.0,0.00010424,2]
[420042899,1775631040557,-500.0,0.00010424,2]
[420042900,1775631040567,-500.0,0.00010424,2]
[420042901,1775631040577,-500.0,0.00010424,2]
[420042902,1775631040586,-500.0,0.00010424,2]
[420042903,1775631040596,-412.62015671,0.00010424,2]
[420042904,1775631040606,-500.0,0.00010424,2]
[420042905,1775631040616,-345.51138736,0.00010424,2]
[420042906,1775631040626,-729.0,0.00010424,2]
[420042907,1775631040637,-500.0,0.00010424,2]
[420042908,1775631040647,-500.0,0.00010424,2]
[420042909,1775631040657,-500.0,0.00010424,2]
[420042910,1775631040666,-500.0,0.00010424,2]
[420042911,1775631040676,-500.0,0.00010424,2]
[420042912,1775631040686,-500.0,0.00010424,2]
[420042913,1775631040696,-596.0,0.00010424,2]
[420042914,1775631040705,-500.0,0.00010424,2]
[420042915,1775631040716,-500.0,0.00010424,2]
[420042916,1775631040725,-596.0,0.00010424,2]
[420042917,1775631040735,-500.0,0.00010424,2]
[420042918,1775631040745,-596.0,0.00010424,2]
[420042919,1775631040755,-500.0,0.00010424,2]
[420042920,1775631040765,-729.0,0.00010424,2]
[420042921,1775631040775,-500.0,0.00010424,2]
[420042922,1775631040785,-596.0,0.00010424,2]
[420042923,1775631040795,-500.0,0.00010424,2]
[420042924,1775631040805,-500.0,0.00010424,2]
[420042925,1775631040815,-596.0,0.00010424,2]
[420042926,1775631040825,-500.0,0.00010424,2]
[420042927,1775631040834,-500.0,0.00010424,2]
[420042928,1775631040844,-596.0,0.00010424,2]
[420042929,1775631040855,-500.0,0.00010424,2]
[420042930,1775631040864,-486.83324584,0.00010424,2]
[420042931,1775631040874,-500.0,0.00010424,2]
[420042932,1775631040885,-596.0,0.00010424,2]
[420042933,1775631040895,-500.0,0.00010424,2]
[420042934,1775631040905,-596.0,0.00010424,2]
[420042935,1775631040915,-500.0,0.00010424,2]
[420042936,1775631040925,-596.0,0.00010424,2]
[420042937,1775631040934,-500.0,0.00010424,2]
[420042938,1775631040944,-500.0,0.00010424,2]
[420042939,1775631040954,-596.0,0.00010424,2]
[420042940,1775631040963,-583.0,0.00010424,2]
[420042941,1775631040973,-500.0,0.00010424,2]
[420042942,1775631040982,-596.0,0.00010424,2]
[420042943,1775631040991,-583.0,0.00010424,2]
[420042944,1775631041001,-500.0,0.00010424,2]
[420042945,1775631041010,-596.0,0.00010424,2]
[420042946,1775631041019,-583.0,0.00010424,2]
[420042947,1775631041029,-596.0,0.00010424,2]
[420042948,1775631041039,-583.0,0.00010424,2]
[420042949,1775631041048,-500.0,0.00010424,2]
[420042950,1775631041058,-596.0,0.00010424,2]
[420042951,1775631041067,-500.0,0.00010424,2]
[420042952,1775631041077,-596.0,0.00010424,2]
[420042953,1775631041086,-509.72471578,0.00010424,2]
[420042954,1775631041096,-743.49073325,0.00010424,2]
[420042955,1775631041105,-596.0,0.00010424,2]
[420042956,1775631041115,-596.0,0.00010424,2]
[420042957,1775631041125,-583.0,0.00010424,2]
[420042958,1775631041135,-596.0,0.00010424,2]
[420042959,1775631041145,-583.0,0.00010424,2]
[420042960,1775631041155,-583.0,0.00010424,2]
[420042961,1775631041164,-583.0,0.00010424,2]
[420042962,1775631041174,-583.0,0.00010424,2]
[420042963,1775631041183,-583.0,0.00010424,2]
[420042964,1775631041192,-583.0,0.00010424,2]
[420042965,1775631041201,-583.0,0.00010424,2]
[420042966,1775631041210,-596.0,0.00010424,2]
[420042967,1775631041219,-583.0,0.00010424,2]
[420042968,1775631041229,-583.0,0.00010424,2]
[420042969,1775631041238,-583.0,0.00010424,2]
[420042970,1775631041247,-583.0,0.00010424,2]
[420042971,1775631041257,-583.0,0.00010424,2]
[420042972,1775631041266,-583.0,0.00010424,2]
[420042973,1775631041276,-596.0,0.00010424,2]
[420042974,1775631041285,-583.0,0.00010424,2]
[420042975,1775631041295,-596.0,0.00010424,2]
[420042976,1775631041304,-583.0,0.00010424,2]
[420042977,1775631041314,-583.0,0.00010424,2]
[420042978,1775631041323,-596.0,0.00010424,2]
[420042979,1775631041333,-583.0,0.00010424,2]
[420042980,1775631041343,-596.0,0.00010424,2]
[420042981,1775631041353,-583.0,0.00010424,2]
[420042982,1775631041362,-616.45063154,0.00010424,2]
[420042983,1775631041372,-602.47425874,0.00010424,2]
[420042984,1775631041381,-500.0,0.00010424,2]
[420042985,1775631041391,-150.0,0.00010424,2]
[420042986,1775631041400,-500.0,0.00010424,2]
[420042987,1775631041410,-150.0,0.00010424,2]
[420042988,1775631041420,-528.23575097,0.00010424,2]
[420042989,1775631041430,-150.0,0.00010424,2]
[420042990,1775631041440,-500.0,0.00010424,2]
[420042991,1775631041449,-188.34372111,0.00010424,2]
[420042992,1775631041459,-500.0,0.00010424,2]
[420042993,1775631041469,-500.0,0.00010424,2]
[420042994,1775631041478,-500.0,0.00010424,2]
[420042995,1775631041488,-500.0,0.00010424,2]
[420042996,1775631041498,-500.0,0.00010424,2]
[420042997,1775631041508,-500.0,0.00010424,2]
[420042998,1775631041518,-500.0,0.00010424,2]
[420042999,1775631041527,-315.65,0.00010427,2]
[420043000,1775631041537,-400.0,0.00010431,2]
[420043001,1775631041546,-152.39,0.00010431,2]
[420043002,1775631041556,-400.0,0.00010434,2]
[420043003,1775631041566,-310.22,0.00010434,2]
[420043004,1775631041575,-1600.0,0.0001044,2]
[420043005,1775631041585,-9000.95,0.0001046,2]
[420043006,1775631041595,-1852.42,0.0001046,2]
[420043007,1775631041605,-1889.59,0.0001046,2]
[420043008,1775631041615,-29999.99,0.00010475,2]
[420043009,1775631041624,-12753.37,0.00010475,2]
[420043010,1775631041634,-9999.99,0.00010475,2]
[420043011,1775631041644,-3507.60489664,0.00010482,2]
[420043012,1775631041654,-1000.0,0.00010499,2]
[420043013,1775631041664,-1000.0,0.00010499,2]
[420043014,1775631041673,-200.0,0.000105,2]
[420043015,1775631041683,-200.0,0.00010502,2]
[420043016,1775631041693,-922.86,0.00010547,2]
[420043017,1775631041702,-600.0,0.00010565,2]
[420043018,1775631041712,-200.0,0.00010605,2]
[420043019,1775631041721,-200.0,0.00010607,2]
[420043020,1775631041730,-500.0,0.00010607,2]
[420043021,1775631041740,-1000.0,0.00010621,2]
[420043022,1775631041749,-455.42271784,0.00010621,2]
[420043023,1775631041759,-1000.0,0.00010621,2]
[420043024,1775631041768,-1000.0,0.00010621,2]
[420043025,1775631041778,-502.49539828,0.00010621,2]
[420043026,1775631041788,-1000.0,0.00010621,2]
[420043027,1775631041798,-1000.0,0.00010621,2]
[420043028,1775631041807,-1001.09261497,0.00010621,2]
[420043029,1775631041817,-1000.0,0.00010621,2]
[420043030,1775631041827,-1000.0,0.00010621,2]
[420043031,1775631041837,-501.51019132,0.00010621,2]
[420043032,1775631041847,-176.3,0.00010675,2]
[420043033,1775631041857,-308.53,0.00010678,2]
[420043034,1775631041866,-918.0,0.00010681,2]
[420043035,1775631041876,-396.69,0.00010681,2]